fUSD/lending_fUSD_20250818
["ID","MTS","AMOUNT","RATE_DAILY","PERIOD"]
[380034350,1755491315124,890.31470351,0.000199,120]
[380034351,1755491316585,-193.16273656,9.663e-05,2]
[380034352,1755491317977,1572.45894298,0.00015,30]
[380034353,1755491319989,439.16945001,0.00022,120]
[380034354,1755491329387,-221.04254506,9.614e-05,2]
[380034355,1755491338005,-260.21053782,9.614e-05,2]
[380034356,1755491339673,-300.0,9.614e-05,2]
[380034357,1755491341440,-152.45,9.614e-05,2]
[380034358,1755491345329,-150.0,9.614e-05,2]
[380034359,1755491354008,-200.0,9.614e-05,2]
[380034362,1755491370921,-257.60525812,9.614e-05,2]
[380034363,1755491371608,-302.02257272,9.663e-05,2]
[380034364,1755491409942,-22.34269609,9.662e-05,2]
[380034365,1755491410611,-277.65730391,9.662e-05,2]
[380034366,1755491428314,-152.60420975,9.662e-05,2]
[380034370,1755491432042,-673.635,9.662e-05,2]
[380034371,1755491432054,-373.76079025,9.662e-05,2]
[380034372,1755491432067,-300.0,9.662e-05,2]
[380034373,1755491432086,-300.0,9.662e-05,2]
[380034374,1755491432106,-2192.66682644,9.663e-05,2]
[380034375,1755491432118,-597.4472886,9.663e-05,2]
[380034376,1755491432130,-1099.65424976,9.663e-05,2]
[380034377,1755491432142,-693.10460756,9.663e-05,2]
[380034389,1755491432274,-9608.57144362,9.663e-05,2]
[380034391,1755491432283,-476.42766316,9.776e-05,2]
[380034392,1755491432293,-267.03212383,9.776e-05,2]
[380034395,1755491432302,-322.34269609,9.776e-05,2]
[380034398,1755491432312,-569.38913729,9.789e-05,2]
[380034401,1755491432321,-161.99,9.79e-05,2]
[380034404,1755491432331,-454.28,9.79e-05,2]
[380034407,1755491432341,-10323.98406993,9.827e-05,2]
[380034410,1755491432351,-3463.0388918,9.906e-05,2]
[380034413,1755491432360,-166.28022791,9.913e-05,2]
[380034415,1755491432369,-400.0,0.0001,3]
[380034417,1755491432379,-204.14,0.00010013,2]
[380034419,1755491432388,-400.0,0.00010058,2]
[380034421,1755491432398,-500.0,0.00010058,2]
[380034423,1755491432408,-150.99,0.00010058,2]
[380034425,1755491432417,-900.0,0.000101,3]
[380034427,1755491432427,-1300.0,0.000102,3]
[380034429,1755491432436,-1800.0,0.000103,3]
[380034431,1755491432445,-188.06,0.00010332,2]
[380034433,1755491432455,-476.19,0.00010346,2]
[380034435,1755491432465,-1068.18908294,0.00010387,2]
[380034437,1755491432474,-2300.0,0.000104,3]
[380034439,1755491432483,-3447.95,0.00010416,2]
[380034441,1755491432493,-4011.7084,0.00010442,2]
[380034443,1755491432502,-150.0,0.00010486,2]
[380034445,1755491432512,-248.71531821,0.00010487,2]
[380034447,1755491432524,-160.0,0.00010487,2]
[380034449,1755491432534,-151.0,0.00010487,2]
[380034451,1755491432543,-151.0,0.00010487,2]
[380034453,1755491432553,-151.0,0.00010487,2]
[380034455,1755491432563,-151.0,0.00010487,2]
[380034457,1755491432572,-151.0,0.00010487,2]
[380034459,1755491432582,-151.0,0.00010487,2]
[380034461,1755491432591,-187.78006525,0.00010487,2]
[380034463,1755491432601,-200.0,0.00010487,2]
[380034465,1755491432612,-151.0,0.00010487,2]
[380034467,1755491432622,-151.0,0.00010487,2]
[380034469,1755491432631,-207.265879,0.00010487,2]
[380034471,1755491432641,-3000.0,0.00010487,2]
[380034473,1755491432650,-151.0,0.00010487,2]
[380034475,1755491432659,-151.0,0.00010487,2]
[380034477,1755491432668,-646.65982734,0.00010487,2]
[380034479,1755491432677,-300.0,0.00010487,2]
[380034481,1755491432687,-151.0,0.00010487,2]
[380034483,1755491432696,-151.0,0.00010487,2]
[380034485,1755491432706,-151.0,0.00010487,2]
[380034487,1755491432718,-1000.0,0.00010487,2]
[380034489,1755491432729,-151.0,0.00010487,2]
[380034491,1755491432741,-1000.0,0.00010487,2]
[380034493,1755491432758,-151.0,0.00010487,2]
[380034495,1755491432771,-1000.0,0.00010487,2]
[380034497,1755491432794,-151.0,0.00010487,2]
[380034499,1755491432804,-384.52732197,0.00010487,2]
[380034501,1755491432814,-151.0,0.00010487,2]
[380034503,1755491432824,-151.0,0.00010487,2]
[380034505,1755491432834,-151.0,0.00010487,2]
[380034507,1755491432843,-151.0,0.00010487,2]
[380034509,1755491432852,-151.0,0.00010487,2]
[380034511,1755491432863,-151.0,0.00010487,2]
[380034513,1755491432873,-151.0,0.00010487,2]
[380034515,1755491432883,-500.0,0.00010487,2]
[380034517,1755491432893,-500.0,0.00010487,2]
[380034519,1755491432902,-500.0,0.00010487,2]
[380034521,1755491432912,-414.27645564,0.00010487,2]
[380035187,1755491439540,-85.72354436,0.00010487,2]
[380035189,1755491439550,-500.0,0.00010487,2]
[380035191,1755491439560,-212.37107,0.00010487,2]
[380035194,1755491439570,-1338.6774324,0.00010487,2]
[380035201,1755491439639,-6978.36280851,0.00010487,2]
[380035203,1755491439648,-151.0,0.00010487,2]
[380035205,1755491439657,-49357.97163095,0.00010493,2]
[380035207,1755491439667,-400.0,0.000105,3]
[380035209,1755491439676,-500.0,0.00010542,2]
[380035211,1755491439685,-8624.77072982,0.00010542,2]
[380035214,1755491439695,-500.0,0.00010597,2]
[380035216,1755491439704,-8943.88724682,0.00010597,2]
[380035218,1755491439713,-400.0,0.000106,3]
[380035220,1755491439722,-1680.0,0.00010628,2]
[380035222,1755491439731,-171.5,0.00010643,2]
[380035224,1755491439740,-500.0,0.00010652,2]
[380035226,1755491439749,-9274.81107495,0.00010652,2]
[380035228,1755491439758,-400.0,0.000107,3]
[380035230,1755491439768,-500.0,0.00010707,2]
[380035232,1755491439777,-8235.3026285,0.00010707,2]
[380035234,1755491439786,-202.02,0.00010722,2]
[380035236,1755491439794,-250.0,0.00010724,2]
[380035238,1755491439804,-500.0,0.00010762,2]
[380035240,1755491439813,-400.0,0.000108,3]
[380035242,1755491439822,-500.0,0.00010817,2]
[380035244,1755491439831,-213.63,0.00010817,2]
[380035246,1755491439840,-500.0,0.00010872,2]
[380035248,1755491439850,-500.0,0.00010877,2]
[380035287,1755491440219,-150.0,0.00010877,2]
[380035289,1755491440228,-1002.0,0.00010877,2]
[380035291,1755491440238,-539.0,0.00010877,2]
[380035293,1755491440247,-565.77873131,0.00010899,2]
[380035295,1755491440257,-565.77873131,0.000109,2]
[380035297,1755491440266,-964.0,0.000109,3]
[380035299,1755491440278,-565.77873131,0.000109,2]
[380035301,1755491440287,-1504.43605879,0.000109,2]
[380035304,1755491440297,-8078.79146164,0.000109,2]
[380035306,1755491440306,-6065.23379763,0.00010901,2]
[380035308,1755491440315,-500.0,0.00010927,2]
[380035310,1755491440324,-1160.3069,0.00010932,2]
[380035312,1755491440333,-4000.0,0.00010958,2]
[380035314,1755491440343,-150.0,0.00010959,2]
[380035316,1755491440352,-343.0,0.00010959,2]
[380035318,1755491440361,-150.0,0.00010959,2]
[380035320,1755491440371,-500.0,0.00010959,2]
[380035322,1755491440380,-150.0,0.00010959,2]
[380035324,1755491440389,-500.0,0.00010959,2]
[380035326,1755491440399,-251.71510553,0.00010959,2]
[380035328,1755491440408,-150.0,0.00010959,2]
[380035330,1755491440417,-500.0,0.00010959,2]
[380035332,1755491440426,-150.0,0.00010959,2]
[380035334,1755491440435,-500.0,0.00010959,2]
[380035336,1755491440444,-150.0,0.00010959,2]
[380035337,1755491440454,-695.0,0.00010959,2]
[380035339,1755491440464,-500.0,0.00010959,2]
[380035341,1755491440472,-449.0,0.00010959,2]
[380035343,1755491440482,-150.0,0.00010959,2]
[380035345,1755491440491,-150.0,0.00010959,2]
[380035347,1755491440501,-500.0,0.00010959,2]
[380035349,1755491440510,-500.0,0.00010959,2]
[380035351,1755491440520,-150.0,0.00010959,2]
[380035354,1755491440533,-500.0,0.00010973,2]
[380035355,1755491440542,-500.0,0.00010973,2]
[380035357,1755491440551,-500.0,0.00010973,2]
[380035359,1755491440561,-500.0,0.00010973,2]
[380035361,1755491440571,-500.0,0.00010973,2]
[380035363,1755491440580,-500.0,0.00010973,2]
[380035365,1755491440589,-500.0,0.00010973,2]
[380035367,1755491440599,-500.0,0.00010973,2]
[380035369,1755491440609,-500.0,0.00010973,2]
[380035370,1755491440620,-500.0,0.00010973,2]
[380035371,1755491440632,-500.0,0.00010973,2]
[380035372,1755491440641,-500.0,0.00010973,2]
[380035373,1755491440651,-510.13897176,0.00010973,2]
[380035374,1755491440660,-500.0,0.00010973,2]
[380035375,1755491440670,-500.0,0.00010973,2]
[380035376,1755491440679,-500.0,0.00010973,2]
[380035377,1755491440688,-500.0,0.00010973,2]
[380035378,1755491440697,-500.0,0.00010973,2]
[380035379,1755491440706,-500.06107947,0.00010973,2]
[380035380,1755491440715,-500.0,0.00010973,2]
[380035382,1755491440724,-500.0,0.00010973,2]
[380035384,1755491440734,-500.0,0.00010973,2]
[380035386,1755491440744,-500.0,0.00010973,2]
[380035388,1755491440753,-500.0,0.00010973,2]
[380035390,1755491440762,-500.0,0.00010973,2]
[380035392,1755491440771,-489.73005226,0.00010973,2]
[380035394,1755491440781,-501.35103141,0.00010973,2]
[380035397,1755491440792,-495.57974681,0.00010973,2]
[380035399,1755491440801,-500.0,0.00010973,2]
[380035401,1755491440811,-500.0,0.00010973,2]
[380035403,1755491440820,-500.0,0.00010982,2]
[380035405,1755491440830,-9355.2868154,0.00010991,2]
[380035406,1755491440839,-3463.0388918,0.00010992,2]
[380035409,1755491440848,-150.0,0.00010999,2]
[380035411,1755491440857,-7830.24,0.00010999,2]
[380035413,1755491440872,-7544.31,0.00010999,2]
[380035415,1755491440881,-150.0,0.00010999,2]
[380035417,1755491440890,-150.0,0.00010999,2]
[380035419,1755491440900,-150.0,0.00010999,2]
[380035421,1755491440909,-150.0,0.00010999,2]
[380035423,1755491440918,-150.0,0.00010999,2]
[380035425,1755491440927,-150.0,0.00010999,2]
[380035426,1755491440937,-150.0,0.00010999,2]
[380035427,1755491440946,-18203270.12333422,0.00011,2]
[380035440,1755491442286,-33374.27549542,0.00011,2]
[380035441,1755491442299,-2702.97952067,0.00011,2]
[380035442,1755491442382,-500831.0371697,0.00011,2]
[380035443,1755491442415,-1375.5,0.00011,2]
[380035444,1755491442440,-1884.1975446,0.00011,2]
[380035485,1755491444557,-115799.40705825,0.00011,2]
[380035486,1755491444877,-4159.15,0.00011,2]
[380035487,1755491445325,170.96689525,9.662e-05,2]
[380035488,1755491445396,79.03310475,9.662e-05,2]
[380035496,1755491447700,-340.07974157,9.662e-05,2]
[380035497,1755491447710,-191.85132721,9.662e-05,2]
[380035498,1755491447719,-671.3193651,0.0001099,2]
[380035499,1755491447729,-671.3193651,0.0001099,2]
[380035500,1755491447743,-671.3193651,0.0001099,2]
[380035501,1755491447753,-7556.97655545,0.00011,2]
[380035502,1755491447884,-2313.8432457,0.00011,2]
[380035503,1755491447894,-1572.32582955,0.00011,2]
[380035504,1755491447905,-1170.916455,0.00011,2]
[380035505,1755491447916,-494.61771879,0.00011,2]
[380035506,1755491447988,-383.87296915,0.00011,2]
[380035507,1755491447999,-295.25514135,0.00011,2]
[380035508,1755491487018,-268.81489,0.00016012,30]
[380035509,1755491487057,-268.81489,0.00016012,30]
[380035510,1755491487096,-268.81489,0.00016012,30]
[380035511,1755491487135,-268.81489,0.00016012,30]
[380035512,1755491487175,-268.8149,0.00016012,30]
[380035513,1755491487214,-155.92554,0.00016012,30]
[380035514,1755491490735,-122.2545678,9.662e-05,2]
[380035515,1755491499767,-55.4908644,9.662e-05,2]
[380035516,1755491500024,187.3782712,9.662e-05,2]
[380035518,1755491589875,-102.5135301,9.663e-05,2]
[380035519,1755491597306,-274.22697614,9.663e-05,2]
[380035520,1755491605609,-417.18217997,9.663e-05,2]
[380035521,1755491611495,-206.07731379,9.663e-05,2]
[380035525,1755491690958,170.0,9.974e-05,7]
[380035526,1755491700731,3182.848977,0.00014,10]
[380035527,1755491718898,190.562008,0.00014,10]
[380035528,1755491774467,152.0,0.00013868,11]
[380035529,1755491775147,152.0,0.00013662,10]
[380035530,1755492023933,830.21524904,0.00024,120]
[380035531,1755492095231,4000.0,0.00014,10]
[380035532,1755492114487,-155.14761348,9.801e-05,2]
[380035533,1755492121680,-154.49659652,9.801e-05,2]
[380035534,1755492121709,-512.81680696,9.851e-05,2]
[380035535,1755492121765,-65.37319304,9.851e-05,2]
[380035536,1755492131053,-955.60717586,9.737e-05,2]
[380035537,1755492137961,-260.9567904,9.737e-05,2]
[380035538,1755492145763,-192.26777144,9.737e-05,2]
[380035539,1755492154700,-203.03,9.737e-05,2]
[380035540,1755492170056,-150.61230978,9.737e-05,2]
[380035541,1755492178038,-183.82595499,9.737e-05,2]
[380035542,1755492178070,-53.69999753,9.737e-05,2]
[380035543,1755492201748,-14.1232906,9.85e-05,2]
[380035544,1755492201810,-415.22307037,9.85e-05,2]
[380035545,1755492218809,-429.88,9.765e-05,2]
[380035546,1755492230876,-26.43,9.765e-05,2]
[380035547,1755492230997,-173.58779364,9.85e-05,2]
[380035548,1755492237854,-21.61713541,9.85e-05,2]
[380035549,1755492237892,-117.85572918,9.85e-05,2]
[380035551,1755492252922,-303.49617833,9.85e-05,2]
[380035552,1755492253389,-264.1132686,9.85e-05,2]
[380035553,1755492259214,-172.37068897,9.85e-05,2]
[380035554,1755492289673,-36.07405947,9.849e-05,2]
[380035555,1755492289760,-264.46839321,9.849e-05,2]
[380035556,1755492298073,-150.0,9.492e-05,2]
[380035557,1755492308271,-300.0,9.492e-05,2]
[380035558,1755492314570,-151.12,9.492e-05,2]
[380035559,1755492349653,-200.0,9.492e-05,2]
[380035560,1755492371075,-283.88,9.492e-05,2]
[380035561,1755492397017,-169.16365603,9.491e-05,2]
[380035562,1755492400148,-166.55309189,9.491e-05,2]
[380035563,1755492402349,-96.74262077,9.491e-05,2]
[380035564,1755492402373,-274.86953085,9.491e-05,2]
[380035565,1755492403186,-156.75795435,9.491e-05,2]
[380035566,1755492404915,-210.53664972,9.491e-05,2]
[380035574,1755492432974,-281.27760347,9.491e-05,2]
[380035575,1755492441039,-81.27760347,9.491e-05,2]
[380035576,1755492441801,-137.44479306,9.491e-05,2]
[380035577,1755492441825,-112.55520694,9.491e-05,2]
[380035578,1755492442619,-137.44479306,9.491e-05,2]
[380035579,1755492446425,-109.61299534,9.491e-05,2]
[380035580,1755492446447,-156.27522326,9.491e-05,2]
[380035581,1755492447493,-259.86574198,9.491e-05,2]
[380035582,1755492447820,-83.85903476,9.491e-05,2]
[380035583,1755492447847,-146.46809575,9.491e-05,2]
[380035584,1755492449432,-267.13864276,9.491e-05,2]
[380035585,1755492453359,-86.39326149,9.491e-05,2]
[380035586,1755492453382,-91.31705714,9.491e-05,2]
[380035587,1755492454906,-156.39383003,9.491e-05,2]
[380035588,1755492455457,-58.44368468,9.491e-05,2]
[380035589,1755492455901,244.5813862,9.491e-05,2]
[380035590,1755492457436,-21.3068324,9.491e-05,2]
[380035591,1755492457458,-133.86865468,9.491e-05,2]
[380035592,1755492458853,-186.82431071,9.491e-05,2]
[380035593,1755492463604,-74.08095971,9.491e-05,2]
[380035594,1755492463628,-275.01931697,9.491e-05,2]
[380035595,1755492465971,-263.41105098,9.491e-05,2]
[380035596,1755492468224,-44.99686973,9.491e-05,2]
[380035597,1755492468249,-182.80496989,9.491e-05,2]
[380035598,1755492469886,-321.47079387,9.491e-05,2]
[380035599,1755492469908,-186.82431071,9.491e-05,2]
[380035600,1755492476681,-190.19972332,9.491e-05,2]
[380035601,1755492479195,-160.19142506,9.491e-05,2]
[380035602,1755492479219,-8.32108119,9.491e-05,2]
[380035603,1755492488767,-221.09143873,9.491e-05,2]
[380035604,1755492494982,-165.75167247,9.491e-05,2]
[380035605,1755492498652,-74.54674283,9.491e-05,2]
[380035606,1755492498675,-124.96658894,9.491e-05,2]
[380035607,1755492504321,-102.83525068,9.491e-05,2]
[380035608,1755492504344,-57.09985549,9.491e-05,2]
[380035609,1755492508865,-179.84231379,9.491e-05,2]
[380035610,1755492510030,-24.36255245,9.491e-05,2]
[380035611,1755492510054,-132.22444755,9.491e-05,2]
[380035612,1755492512670,-278.97944678,9.491e-05,2]
[380035617,1755492564646,-178.53,9.534e-05,2]
[380035618,1755492566135,-75.45,9.534e-05,2]
[380035619,1755492578855,-357.86029972,9.616e-05,2]
[380035620,1755492626069,-235.97351311,9.507e-05,2]
[380035621,1755492628926,-14.02648689,9.507e-05,2]
[380035625,1755492632734,-1335.29970028,9.616e-05,2]
[380035626,1755492632744,-1799.1867393,9.627e-05,2]
[380035627,1755492632754,-1000.0,9.627e-05,2]
[380035628,1755492632763,-210.37971688,9.848e-05,2]
[380035629,1755492632772,-181.9032968,9.848e-05,2]
[380035630,1755492632781,-359.36675174,9.848e-05,2]
[380035631,1755492632790,-203.85968817,9.848e-05,2]
[380035632,1755492632800,-449.9275454,9.848e-05,2]
[380035633,1755492632809,-1200.0,9.848e-05,2]
[380035634,1755492632818,-250.0,9.849e-05,2]
[380035635,1755492632828,-1850.24,9.851e-05,2]
[380035636,1755492632837,-267.0,9.887e-05,2]
[380035637,1755492632850,-300.0,9.887e-05,2]
[380035638,1755492632859,-150.0,9.888e-05,2]
[380035639,1755492632868,-150.0,9.888e-05,2]
[380035640,1755492632878,-150.0,9.888e-05,2]
[380035641,1755492632888,-280.12695609,9.888e-05,2]
[380035642,1755492632897,-150.0,9.888e-05,2]
[380035643,1755492632907,-150.0,9.888e-05,2]
[380035644,1755492632917,-150.45940686,9.888e-05,2]
[380035645,1755492632926,-150.17856362,9.888e-05,2]
[380035646,1755492632936,-150.74946201,9.888e-05,2]
[380035647,1755492632945,-152.18297532,9.888e-05,2]
[380035648,1755492632954,-150.0,9.888e-05,2]
[380035649,1755492632963,-150.0,9.888e-05,2]
[380035650,1755492632973,-5099.65,9.964e-05,2]
[380035651,1755492632982,-1085.0,9.992e-05,2]
[380035652,1755492632992,-400.0,0.0001,3]
[380035653,1755492633001,-264.6837176,0.0001,2]
[380035654,1755492633012,-150.0,0.0001001,2]
[380035655,1755492633021,-800.0,0.000101,3]
[380035656,1755492633031,-150.0,0.00010132,2]
[380035657,1755492633040,-150.0,0.00010162,2]
[380035658,1755492633049,-150.0,0.00010162,2]
[380035659,1755492633058,-152.45,0.0001018,2]
[380035660,1755492633067,-1200.0,0.000102,3]
[380035661,1755492633077,-150.0,0.00010254,2]
[380035662,1755492633086,-150.0,0.00010254,2]
[380035663,1755492633096,-150.0,0.00010254,2]
[380035664,1755492633105,-150.0,0.00010254,2]
[380035665,1755492633115,-1700.0,0.000103,3]
[380035666,1755492633125,-150.0,0.00010376,2]
[380035667,1755492633135,-2100.0,0.000104,3]
[380035668,1755492633144,-150.0,0.00010437,2]
[380035669,1755492633154,-150.0,0.00010437,2]
[380035670,1755492633163,-156.66,0.00010448,2]
[380035671,1755492633172,-150.0,0.00010498,2]
[380035672,1755492633182,-150.0,0.000105,2]
[380035673,1755492633193,-400.0,0.000105,3]
[380035674,1755492633202,-1085.0,0.00010517,2]
[380035675,1755492633211,-150.0,0.00010596,2]
[380035676,1755492633220,-400.0,0.000106,3]
[380035677,1755492633230,-150.0,0.0001062,2]
[380035678,1755492633239,-150.0,0.0001062,2]
[380035679,1755492633248,-150.0,0.0001062,2]
[380035680,1755492633257,-150.0,0.0001062,2]
[380035681,1755492633267,-173.16,0.00010696,2]
[380035682,1755492633276,-400.0,0.000107,3]
[380035683,1755492633286,-150.0,0.00010712,2]
[380035684,1755492633296,-150.0,0.00010712,2]
[380035685,1755492633305,-150.0,0.00010742,2]
[380035686,1755492633315,-400.0,0.000108,3]
[380035687,1755492633324,-2120.9111,0.000108,2]
[380035688,1755492633333,-1000.0,0.00010831,2]
[380035689,1755492633343,-1680.0,0.00010833,2]
[380035690,1755492633352,-250.0,0.00010833,2]
[380035691,1755492633362,-565.77873131,0.00010859,2]
[380035692,1755492633372,-150.0,0.00010864,2]
[380035693,1755492633382,-420.0,0.00010875,2]
[380035694,1755492633391,-248.71531821,0.00010893,2]
[380035695,1755492633401,-3000.0,0.00010893,2]
[380035696,1755492633410,-1646.6197,0.00010899,2]
[380035697,1755492633420,-11692.17117169,0.000109,2]
[380035698,1755492633430,-476.78256057,0.000109,2]
[380035699,1755492633440,-1000.0,0.000109,2]
[380035700,1755492633449,-3362.16689815,0.000109,2]
[380035701,1755492633546,-65.32533678,0.000109,2]
[380035702,1755492633557,-2406.59726646,0.000109,2]
[380035703,1755492633602,-5554.27333414,0.000109,2]
[380035730,1755492638396,-79356.46776447,0.000109,2]
[380035732,1755492638406,-6654.4074,0.000109,2]
[380035734,1755492638415,-25508.1228,0.000109,2]
[380035736,1755492638425,-665.0445,0.000109,2]
[380035738,1755492638434,-21357.66726122,0.000109,2]
[380035740,1755492638443,-808.0,0.000109,3]
[380035742,1755492638453,-1251.40943873,0.000109,2]
[380035744,1755492638462,-2302.43875743,0.000109,2]
[380035746,1755492638471,-1504.43605879,0.000109,2]
[380035748,1755492638481,-1327.24579769,0.000109,2]
[380035750,1755492638490,-200.0,0.00010959,2]
[380035752,1755492638500,-150.0,0.00010959,2]
[380035754,1755492638509,-343.0,0.00010959,2]
[380035756,1755492638518,-1160.3069,0.00010959,2]
[380035758,1755492638528,-4925.83,0.00010959,2]
[380035760,1755492638537,-150.0,0.00010959,2]
[380035762,1755492638546,-501.63134813,0.00010973,2]
[380035764,1755492638556,-150.72577644,0.00010973,2]
[380035766,1755492638565,-500.0,0.00010973,2]
[380035768,1755492638575,-500.0,0.00010973,2]
[380035770,1755492638584,-500.0,0.00010973,2]
[380035772,1755492638593,-500.0,0.00010973,2]
[380035774,1755492638603,-500.06107947,0.00010973,2]
[380035776,1755492638612,-500.0,0.00010973,2]
[380035778,1755492638621,-500.0,0.00010973,2]
[380035780,1755492638631,-527.74833519,0.00010973,2]
[380035782,1755492638641,-518.11592461,0.00010973,2]
[380035784,1755492638650,-500.0,0.00010973,2]
[380035786,1755492638659,-500.0,0.00010973,2]
[380035788,1755492638669,-500.0,0.00010973,2]
[380035790,1755492638678,-500.0,0.00010973,2]
[380035792,1755492638687,-500.0,0.00010973,2]
[380035794,1755492638696,-500.0,0.00010973,2]
[380035796,1755492638706,-500.69974188,0.00010973,2]
[380035798,1755492638715,-501.35103141,0.00010973,2]
[380035800,1755492638724,-500.0,0.00010973,2]
[380035802,1755492638734,-510.13897176,0.00010973,2]
[380035804,1755492638743,-500.0,0.00010973,2]
[380035806,1755492638753,-629.80551833,0.00010973,2]
[380035808,1755492638762,-500.0,0.00010973,2]
[380035810,1755492638771,-172.63172576,0.00010973,2]
[380035812,1755492638781,-500.0,0.00010973,2]
[380035814,1755492638790,-500.0,0.00010973,2]
[380035816,1755492638799,-501.3536025,0.00010973,2]
[380035818,1755492638808,-500.0,0.00010973,2]
[380035820,1755492638817,-500.0,0.00010973,2]
[380035822,1755492638827,-500.0,0.00010973,2]
[380035824,1755492638836,-500.0,0.00010973,2]
[380035826,1755492638848,-500.0,0.00010973,2]
[380035828,1755492638857,-500.0,0.00010973,2]
[380035830,1755492638867,-489.73005226,0.00010973,2]
[380035832,1755492638876,-500.0,0.00010973,2]
[380035834,1755492638885,-495.57974681,0.00010973,2]
[380035836,1755492638895,-500.0,0.00010973,2]
[380035838,1755492638904,-150.0,0.00010973,2]
[380035840,1755492638913,-500.0,0.00010973,2]
[380035843,1755492638924,-150.0,0.00010973,2]
[380035845,1755492638934,-500.0,0.00010973,2]
[380035847,1755492638943,-251.71510553,0.00010973,2]
[380035849,1755492638952,-150.0,0.00010973,2]
[380035851,1755492638961,-500.0,0.00010973,2]
[380035853,1755492638970,-150.0,0.00010973,2]
[380035855,1755492638980,-729.0,0.00010973,2]
[380035857,1755492638989,-429.0,0.00010973,2]
[380035859,1755492638998,-575.0,0.00010973,2]
[380035861,1755492639007,-150.0,0.00010973,2]
[380035863,1755492639017,-150.0,0.00010973,2]
[380035865,1755492639026,-1216.0,0.00010973,2]
[380035867,1755492639039,-150.0,0.00010973,2]
[380035869,1755492639048,-500.0,0.00010973,2]
[380035871,1755492639057,-500.0,0.00010973,2]
[380035873,1755492639066,-500.0,0.00010973,2]
[380035875,1755492639075,-500.0,0.00010973,2]
[380035877,1755492639084,-150.0,0.00010973,2]
[380035879,1755492639093,-150.0,0.00010973,2]
[380035881,1755492639102,-500.0,0.00010973,2]
[380035883,1755492639112,-150.0,0.00010973,2]
[380035885,1755492639121,-961.0,0.00010973,2]
[380035887,1755492639131,-517.0,0.00010973,2]
[380035889,1755492639140,-456.31,0.00010986,2]
[380035891,1755492639149,-254.8592077,0.00010986,2]
[380035893,1755492639158,-150.0,0.00010986,2]
[380035895,1755492639167,-150.0,0.00010986,2]
[380035897,1755492639176,-292.06482445,0.00010986,2]
[380035899,1755492639185,-196.43860886,0.00010986,2]
[380035901,1755492639195,-250.12521967,0.00010986,2]
[380035902,1755492639204,-151.31924293,0.00010989,2]
[380035905,1755492639213,-500.0,0.00010989,2]
[380035907,1755492639223,-2671.19095307,0.0001099,2]
[380035909,1755492639232,-646.65982734,0.00010993,2]
[380035911,1755492639241,-160.0,0.00010993,2]
[380035912,1755492639250,-500.0,0.00010993,2]
[380035914,1755492639259,-500.0,0.00010993,2]
[380035916,1755492639268,-500.0,0.00010993,2]
[380035919,1755492639277,-500.0,0.00010993,2]
[380035921,1755492639286,-500.0,0.00010993,2]
[380035923,1755492639296,-500.0,0.00010993,2]
[380035924,1755492639305,-500.0,0.00010993,2]
[380035927,1755492639315,-500.0,0.00010993,2]
[380035929,1755492639324,-500.0,0.00010993,2]
[380035931,1755492639333,-500.0,0.00010993,2]
[380035933,1755492639343,-187.78006525,0.00010993,2]
[380035935,1755492639352,-500.0,0.00010993,2]
[380035937,1755492639361,-500.0,0.00010993,2]
[380035938,1755492639371,-176.50660503,0.00010993,2]
[380035939,1755492639380,-500.0,0.00010993,2]
[380035940,1755492639391,-200.0,0.00010993,2]
[380035941,1755492639400,-500.0,0.00010993,2]
[380035942,1755492639409,-151.0,0.00010993,2]
[380035943,1755492639418,-151.0,0.00010993,2]